[Event "Late-Titled-Tuesday-Blitz-May-14-2024"]
[Site "Chess.com"]
[Date "2024.05.14"]
[Round "6"]
[White "becemix"]
[Black "GMthekingindian"]
[Result "1-0"]
[WhiteElo "2598"]
[BlackElo "2314"]
[TimeControl "180+1"]
[EndTime "15:06:35 PDT"]
[Termination "becemix won on time"]

1. e4 {[%clk 0:03:00.9]} 1... c5 {[%clk 0:02:59.9]} 2. c3 {[%clk 0:03:00.5]}
2... Nf6 {[%clk 0:02:59.8]} 3. e5 {[%clk 0:03:01]} 3... Nd5 {[%clk 0:03:00.4]}
4. d4 {[%clk 0:03:01.5]} 4... cxd4 {[%clk 0:03:01.3]} 5. cxd4 {[%clk 0:03:02]}
5... e6 {[%clk 0:03:01.6]} 6. Nc3 {[%clk 0:03:02]} 6... Nxc3 {[%clk 0:03:01.3]}
7. bxc3 {[%clk 0:03:02.9]} 7... Qc7 {[%clk 0:03:02]} 8. Bd2 {[%clk 0:03:02.8]}
8... d6 {[%clk 0:03:02.5]} 9. f4 {[%clk 0:03:02.9]} 9... b6 {[%clk 0:02:58.7]}
10. Nf3 {[%clk 0:03:02.9]} 10... Bb7 {[%clk 0:02:58.6]} 11. Bd3 {[%clk
0:03:03.3]} 11... Be7 {[%clk 0:02:39.3]} 12. O-O {[%clk 0:03:03.2]} 12... g6
{[%clk 0:02:39.7]} 13. a4 {[%clk 0:02:38.8]} 13... Nc6 {[%clk 0:02:39.3]} 14.
Qe2 {[%clk 0:02:33]} 14... Na5 {[%clk 0:02:35.6]} 15. exd6 {[%clk 0:02:21.7]}
15... Bxd6 {[%clk 0:02:34.2]} 16. Ne5 {[%clk 0:02:22]} 16... Nb3 {[%clk
0:01:53.1]} 17. Bb5+ {[%clk 0:02:18.6]} 17... Ke7 {[%clk 0:01:53.5]} 18. Rab1
{[%clk 0:02:17.4]} 18... Nxd2 {[%clk 0:01:53.3]} 19. Qxd2 {[%clk 0:02:18.3]}
19... Be4 {[%clk 0:01:37.9]} 20. Rbe1 {[%clk 0:02:14.1]} 20... f5 {[%clk
0:01:38.1]} 21. Bd3 {[%clk 0:02:07.6]} 21... Bxe5 {[%clk 0:01:38]} 22. fxe5
{[%clk 0:02:05.9]} 22... Bxd3 {[%clk 0:01:33.9]} 23. Qxd3 {[%clk 0:02:06.8]}
23... Rac8 {[%clk 0:01:30.2]} 24. Rc1 {[%clk 0:01:54.2]} 24... Qc4 {[%clk
0:01:29.9]} 25. Qe3 {[%clk 0:01:54.5]} 25... h6 {[%clk 0:01:26.5]} 26. h4 {[%clk
0:01:52.5]} 26... Qxa4 {[%clk 0:01:20]} 27. Ra1 {[%clk 0:01:27.8]} 27... Qd7
{[%clk 0:01:18.6]} 28. d5 {[%clk 0:01:28]} 28... exd5 {[%clk 0:01:13.5]} 29. e6
{[%clk 0:01:26.6]} 29... Qc7 {[%clk 0:01:05.4]} 30. Kh1 {[%clk 0:01:18.1]} 30...
a5 {[%clk 0:01:03.7]} 31. h5 {[%clk 0:01:18.2]} 31... Qxc3 {[%clk 0:00:42.7]}
32. Qxb6 {[%clk 0:01:18.1]} 32... Rc7 {[%clk 0:00:21]} 33. hxg6 {[%clk
0:01:14.1]} 33... Rg8 {[%clk 0:00:21.5]} 34. Rxa5 {[%clk 0:00:36.8]} 34... Rxg6
{[%clk 0:00:21.1]} 35. Rxd5 {[%clk 0:00:33.9]} 35... Rxe6 {[%clk 0:00:18.6]} 36.
Qb8 {[%clk 0:00:29.6]} 36... Rc8 {[%clk 0:00:14.5]} 37. Qh2 {[%clk 0:00:23.7]}
37... Rf6 {[%clk 0:00:01.7]} 38. Qh4 {[%clk 0:00:18.3]} 38... Kf7 {[%clk
0:00:01.1]} 39. Rd7+ {[%clk 0:00:16.5]} 39... Ke6 {[%clk 0:00:00.6]} 40. Rfd1
{[%clk 0:00:16.6]} 40... Rc6 {[%clk 0:00:00.6]} 41. Rd8 {[%clk 0:00:15.7]} 1-0

[Event "Late-Titled-Tuesday-Blitz-May-14-2024"]
[Site "Chess.com"]
[Date "2024.05.14"]
[Round "6"]
[White "NMJeevanK"]
[Black "rasmussvane"]
[Result "0-1"]
[WhiteElo "2725"]
[BlackElo "2974"]
[TimeControl "180+1"]
[EndTime "15:06:36 PDT"]
[Termination "rasmussvane won by resignation"]

1. e4 {[%clk 0:03:00.9]} 1... c6 {[%clk 0:02:50.4]} 2. d4 {[%clk 0:02:58.8]}
2... d5 {[%clk 0:02:51.3]} 3. exd5 {[%clk 0:02:59.6]} 3... cxd5 {[%clk
0:02:52.2]} 4. Bd3 {[%clk 0:02:59.9]} 4... Nf6 {[%clk 0:02:52.4]} 5. c3 {[%clk
0:02:59.7]} 5... Bg4 {[%clk 0:02:51.7]} 6. Ne2 {[%clk 0:03:00]} 6... e6 {[%clk
0:02:48.4]} 7. O-O {[%clk 0:02:59.8]} 7... Bd6 {[%clk 0:02:46.6]} 8. Qe1 {[%clk
0:02:59.6]} 8... Qc7 {[%clk 0:02:42.5]} 9. f3 {[%clk 0:02:45.6]} 9... Bh5 {[%clk
0:02:40]} 10. Qh4 {[%clk 0:02:31.3]} 10... O-O {[%clk 0:02:33]} 11. Bg5 {[%clk
0:02:16.3]} 11... Nbd7 {[%clk 0:02:31.3]} 12. Nf4 {[%clk 0:02:11.7]} 12... Bg6
{[%clk 0:02:28.4]} 13. Nxg6 {[%clk 0:02:08.4]} 13... hxg6 {[%clk 0:02:27.6]} 14.
Nd2 {[%clk 0:02:05.3]} 14... e5 {[%clk 0:02:20.2]} 15. dxe5 {[%clk 0:02:03]}
15... Nxe5 {[%clk 0:02:19.6]} 16. Bc2 {[%clk 0:01:49.5]} 16... Qb6+ {[%clk
0:02:18]} 17. Kh1 {[%clk 0:01:42.1]} 17... Qxb2 {[%clk 0:02:17.5]} 18. Bb3
{[%clk 0:01:31.3]} 18... Qxc3 {[%clk 0:02:06.7]} 19. Rac1 {[%clk 0:01:24.7]}
19... Qb4 {[%clk 0:01:59.1]} 20. Bxf6 {[%clk 0:01:18.7]} 20... gxf6 {[%clk
0:01:57.2]} 21. Qxf6 {[%clk 0:01:17.4]} 21... Nd7 {[%clk 0:01:35]} 22. Qb2
{[%clk 0:00:58.8]} 22... Be5 {[%clk 0:01:13.2]} 23. Qc2 {[%clk 0:00:50.2]} 23...
Nf6 {[%clk 0:01:08]} 24. Rce1 {[%clk 0:00:47.4]} 24... Bc3 {[%clk 0:01:04.7]}
25. Rd1 {[%clk 0:00:41.2]} 25... Rfe8 {[%clk 0:01:03]} 26. Nb1 {[%clk
0:00:38.5]} 26... Be5 {[%clk 0:00:48.6]} 27. Bxd5 {[%clk 0:00:36.8]} 27... Kg7
{[%clk 0:00:48.9]} 28. Be4 {[%clk 0:00:35]} 28... Rh8 {[%clk 0:00:45.6]} 29. f4
{[%clk 0:00:19.6]} 29... Qxe4 {[%clk 0:00:42.4]} 30. Qxe4 {[%clk 0:00:18.1]}
30... Nxe4 {[%clk 0:00:43.3]} 31. fxe5 {[%clk 0:00:18.2]} 31... Ng3+ {[%clk
0:00:43.7]} 32. Kg1 {[%clk 0:00:18.9]} 32... Nxf1 {[%clk 0:00:44.2]} 33. Rxf1
{[%clk 0:00:18.8]} 33... Rae8 {[%clk 0:00:43.9]} 34. Nc3 {[%clk 0:00:11.5]}
34... Rxe5 {[%clk 0:00:43.6]} 35. Rb1 {[%clk 0:00:12.2]} 35... b6 {[%clk
0:00:43.7]} 36. g3 {[%clk 0:00:11.6]} 36... Rc8 {[%clk 0:00:43]} 37. Nb5 {[%clk
0:00:11.7]} 37... Rc2 {[%clk 0:00:40.6]} 38. Nd6 {[%clk 0:00:11.2]} 38... Ree2
{[%clk 0:00:38.8]} 39. h4 {[%clk 0:00:10.1]} 39... Rg2+ {[%clk 0:00:37.7]} 40.
Kh1 {[%clk 0:00:10.8]} 40... Rxg3 {[%clk 0:00:36.6]} 41. Rf1 {[%clk 0:00:08.9]}
41... Rh3+ {[%clk 0:00:36]} 42. Kg1 {[%clk 0:00:09.4]} 42... Rg3+ {[%clk
0:00:36.9]} 43. Kh1 {[%clk 0:00:09.8]} 43... f5 {[%clk 0:00:37.3]} 44. a4 {[%clk
0:00:08.6]} 44... Rh3+ {[%clk 0:00:37.5]} 45. Kg1 {[%clk 0:00:08.7]} 45... Rg3+
{[%clk 0:00:38.4]} 46. Kh1 {[%clk 0:00:08.9]} 46... Rh3+ {[%clk 0:00:35.2]} 47.
Kg1 {[%clk 0:00:08.9]} 47... Rxh4 {[%clk 0:00:35.9]} 48. a5 {[%clk 0:00:08.6]}
48... Rg4+ {[%clk 0:00:35.8]} 49. Kh1 {[%clk 0:00:08.2]} 49... Rh4+ {[%clk
0:00:33.6]} 50. Kg1 {[%clk 0:00:08.6]} 50... bxa5 {[%clk 0:00:34.3]} 51. Re1
{[%clk 0:00:06.5]} 51... Rd4 {[%clk 0:00:31.5]} 52. Ne8+ {[%clk 0:00:05.5]}
52... Kf7 {[%clk 0:00:31]} 53. Kh1 {[%clk 0:00:05.9]} 53... Rd8 {[%clk
0:00:29.6]} 0-1

[Event "Late-Titled-Tuesday-Blitz-May-14-2024"]
[Site "Chess.com"]
[Date "2024.05.14"]
[Round "6"]
[White "only_strong_moves"]
[Black "urano56"]
[Result "0-1"]
[WhiteElo "2656"]
[BlackElo "2442"]
[TimeControl "180+1"]
[EndTime "15:06:36 PDT"]
[Termination "urano56 won by resignation"]

1. Nc3 {[%clk 0:02:23.7]} 1... d5 {[%clk 0:02:58.9]} 2. e4 {[%clk 0:02:23.6]}
2... d4 {[%clk 0:02:47.6]} 3. Nce2 {[%clk 0:02:22.9]} 3... e5 {[%clk 0:02:46.7]}
4. c3 {[%clk 0:02:21.2]} 4... c5 {[%clk 0:02:46.6]} 5. Ng3 {[%clk 0:02:21.5]}
5... Nc6 {[%clk 0:02:46.3]} 6. Bc4 {[%clk 0:02:21.8]} 6... Nf6 {[%clk
0:02:46.2]} 7. Nf3 {[%clk 0:02:22.1]} 7... Bd6 {[%clk 0:02:46.2]} 8. O-O {[%clk
0:02:21.8]} 8... O-O {[%clk 0:02:46]} 9. d3 {[%clk 0:02:21.1]} 9... h6 {[%clk
0:02:34.3]} 10. Nh4 {[%clk 0:02:21.1]} 10... Bg4 {[%clk 0:02:29.5]} 11. Qd2
{[%clk 0:02:11.4]} 11... Ne7 {[%clk 0:02:28]} 12. Qe1 {[%clk 0:01:54.3]} 12...
Kh7 {[%clk 0:02:25.4]} 13. f4 {[%clk 0:01:53.4]} 13... exf4 {[%clk 0:02:22.3]}
14. Bxf4 {[%clk 0:01:54.3]} 14... Bxf4 {[%clk 0:02:22.5]} 15. Rxf4 {[%clk
0:01:55.2]} 15... Ng6 {[%clk 0:02:22.1]} 16. Nxg6 {[%clk 0:01:55]} 16... fxg6
{[%clk 0:02:17.9]} 17. e5 {[%clk 0:01:55.2]} 17... Qc7 {[%clk 0:02:10.5]} 18.
cxd4 {[%clk 0:01:33.4]} 18... cxd4 {[%clk 0:02:06.2]} 19. Rc1 {[%clk 0:01:33.9]}
19... Qb8 {[%clk 0:01:48.3]} 20. Rxd4 {[%clk 0:01:27.6]} 20... Re8 {[%clk
0:01:39.7]} 21. e6 {[%clk 0:01:19.2]} 21... b5 {[%clk 0:01:31.1]} 22. Bb3 {[%clk
0:01:17.4]} 22... Qb6 {[%clk 0:01:29.2]} 23. Qf2 {[%clk 0:01:15.2]} 23... Bxe6
{[%clk 0:01:23.7]} 24. Bxe6 {[%clk 0:01:00.2]} 24... Rxe6 {[%clk 0:01:19.5]} 25.
h3 {[%clk 0:00:50.9]} 25... Rae8 {[%clk 0:01:16.2]} 26. Kh2 {[%clk 0:00:40.4]}
26... Re3 {[%clk 0:01:12.2]} 27. Rf4 {[%clk 0:00:35.3]} 27... Qd6 {[%clk
0:00:57]} 28. Kh1 {[%clk 0:00:20.5]} 28... Qxd3 {[%clk 0:00:53.1]} 29. Rc7
{[%clk 0:00:14.5]} 29... Nd5 {[%clk 0:00:22.1]} 30. Rd7 {[%clk 0:00:02.3]} 30...
Qb1+ {[%clk 0:00:20.5]} 31. Qf1 {[%clk 0:00:03]} 31... Re1 {[%clk 0:00:19]} 32.
Rxd5 {[%clk 0:00:03.4]} 32... Rxf1+ {[%clk 0:00:19.1]} 33. Nxf1 {[%clk
0:00:03.1]} 33... Qxb2 {[%clk 0:00:18.5]} 34. Rd7 {[%clk 0:00:03]} 34... Re1
{[%clk 0:00:18.1]} 35. Rff7 {[%clk 0:00:03.4]} 35... Qa1 {[%clk 0:00:18.6]} 36.
Kg1 {[%clk 0:00:03.8]} 36... g5 {[%clk 0:00:18.1]} 37. h4 {[%clk 0:00:03.9]}
37... gxh4 {[%clk 0:00:17.9]} 38. Rf4 {[%clk 0:00:03.4]} 38... Rd1 {[%clk
0:00:15]} 39. Rxa7 {[%clk 0:00:03.6]} 39... Rxf1+ {[%clk 0:00:13.7]} 40. Rxf1
{[%clk 0:00:02.5]} 40... Qd4+ {[%clk 0:00:14.1]} 41. Kh2 {[%clk 0:00:02.7]}
41... Qxa7 {[%clk 0:00:15]} 42. Rf7 {[%clk 0:00:03.2]} 42... Qxf7 {[%clk
0:00:14.6]} 0-1

[Event "Late-Titled-Tuesday-Blitz-May-14-2024"]
[Site "Chess.com"]
[Date "2024.05.14"]
[Round "6"]
[White "ZachHKL"]
[Black "Eliwood44"]
[Result "0-1"]
[WhiteElo "2301"]
[BlackElo "2439"]
[TimeControl "180+1"]
[EndTime "15:06:37 PDT"]
[Termination "Eliwood44 won by resignation"]

1. c4 {[%clk 0:03:00.9]} 1... e6 {[%clk 0:02:54.2]} 2. g3 {[%clk 0:03:01]} 2...
d5 {[%clk 0:02:52.7]} 3. Bg2 {[%clk 0:03:01.2]} 3... dxc4 {[%clk 0:02:19.4]} 4.
Nf3 {[%clk 0:02:58.8]} 4... Nf6 {[%clk 0:02:18.1]} 5. O-O {[%clk 0:02:57.1]}
5... a6 {[%clk 0:02:18.7]} 6. Na3 {[%clk 0:02:55.7]} 6... Bxa3 {[%clk
0:02:17.7]} 7. bxa3 {[%clk 0:02:55.1]} 7... b5 {[%clk 0:02:15.3]} 8. a4 {[%clk
0:02:54]} 8... Bb7 {[%clk 0:02:14]} 9. Rb1 {[%clk 0:02:50.2]} 9... Bc6 {[%clk
0:02:03.8]} 10. Ba3 {[%clk 0:02:48.7]} 10... Nbd7 {[%clk 0:02:02.4]} 11. Qc1
{[%clk 0:02:39.3]} 11... Rb8 {[%clk 0:02:01]} 12. d3 {[%clk 0:02:35.7]} 12...
Bxf3 {[%clk 0:01:58.7]} 13. Bxf3 {[%clk 0:02:30.8]} 13... cxd3 {[%clk
0:01:58.9]} 14. exd3 {[%clk 0:02:28.9]} 14... c5 {[%clk 0:01:58.8]} 15. axb5
{[%clk 0:02:15.9]} 15... axb5 {[%clk 0:01:59.7]} 16. Bxc5 {[%clk 0:02:13.7]}
16... Nxc5 {[%clk 0:01:56.8]} 17. Qxc5 {[%clk 0:02:12.9]} 17... Nd7 {[%clk
0:01:56.4]} 18. Qb4 {[%clk 0:02:01.5]} 18... Qe7 {[%clk 0:01:55.2]} 19. Bc6
{[%clk 0:01:56.2]} 19... Qxb4 {[%clk 0:01:54.4]} 20. Rxb4 {[%clk 0:01:54.9]}
20... Ke7 {[%clk 0:01:54.8]} 21. Rfb1 {[%clk 0:01:45.2]} 21... Nc5 {[%clk
0:01:51.1]} 22. d4 {[%clk 0:01:41.8]} 22... Rhc8 {[%clk 0:01:41.2]} 23. Bxb5
{[%clk 0:01:09.9]} 23... Ne4 {[%clk 0:01:34.9]} 24. Bd3 {[%clk 0:00:53.1]} 24...
Rxb4 {[%clk 0:01:28.4]} 25. Rxb4 {[%clk 0:00:54]} 25... Nd6 {[%clk 0:01:27.3]}
26. Kf1 {[%clk 0:00:47.3]} 26... g6 {[%clk 0:01:24.8]} 27. Ke2 {[%clk
0:00:41.5]} 27... h5 {[%clk 0:01:22.6]} 28. h4 {[%clk 0:00:40]} 28... Kd7 {[%clk
0:01:19.3]} 29. Kd2 {[%clk 0:00:32.7]} 29... Rc7 {[%clk 0:01:17.9]} 30. a4
{[%clk 0:00:24.2]} 30... Ra7 {[%clk 0:01:17.2]} 31. Bc2 {[%clk 0:00:20.4]} 31...
Ra5 {[%clk 0:01:13.5]} 32. Kc3 {[%clk 0:00:19.3]} 32... Kc6 {[%clk 0:01:12]} 33.
Bd1 {[%clk 0:00:18.9]} 33... Ne4+ {[%clk 0:01:09.6]} 34. Kb3 {[%clk 0:00:14.2]}
34... Nxf2 {[%clk 0:01:08.7]} 35. Bf3+ {[%clk 0:00:14.1]} 35... Kd6 {[%clk
0:01:08.5]} 36. Rb6+ {[%clk 0:00:13.8]} 36... Ke7 {[%clk 0:01:06.2]} 37. Kb4
{[%clk 0:00:14]} 37... Rf5 {[%clk 0:01:00.2]} 38. Bc6 {[%clk 0:00:12.1]} 38...
Nd3+ {[%clk 0:00:57.5]} 39. Kc3 {[%clk 0:00:11.5]} 39... Nc1 {[%clk 0:00:56.4]}
40. Kb4 {[%clk 0:00:08.7]} 40... Ne2 {[%clk 0:00:55.7]} 41. a5 {[%clk
0:00:08.6]} 41... Rf1 {[%clk 0:00:52.9]} 42. Kb5 {[%clk 0:00:07.7]} 42... Nxd4+
{[%clk 0:00:52.7]} 43. Ka6 {[%clk 0:00:07.6]} 43... Ra1 {[%clk 0:00:47.9]} 44.
Be4 {[%clk 0:00:04.1]} 44... f5 {[%clk 0:00:47]} 45. Bd3 {[%clk 0:00:03.9]}
45... e5 {[%clk 0:00:47.1]} 46. Rb4 {[%clk 0:00:03.9]} 46... Nc6 {[%clk
0:00:44]} 47. Rb5 {[%clk 0:00:02.6]} 47... e4 {[%clk 0:00:43.7]} 48. Be2 {[%clk
0:00:02.5]} 48... Kd6 {[%clk 0:00:41.7]} 49. Kb6 {[%clk 0:00:02.5]} 49... Ra3
{[%clk 0:00:37.1]} 50. a6 {[%clk 0:00:02.1]} 50... Rxg3 {[%clk 0:00:37]} 51. a7
{[%clk 0:00:00.5]} 51... Ra3 {[%clk 0:00:35.8]} 52. a8=Q {[%clk 0:00:00.7]}
52... Rxa8 {[%clk 0:00:35.5]} 53. Kb7 {[%clk 0:00:01.4]} 53... Rb8+ {[%clk
0:00:34.9]} 54. Ka6 {[%clk 0:00:01.8]} 54... Rxb5 {[%clk 0:00:35.8]} 55. Kxb5
{[%clk 0:00:01.8]} 55... Nd4+ {[%clk 0:00:36.4]} 56. Kc4 {[%clk 0:00:02.7]}
56... Nxe2 {[%clk 0:00:37.3]} 0-1

[Event "Late-Titled-Tuesday-Blitz-May-14-2024"]
[Site "Chess.com"]
[Date "2024.05.14"]
[Round "6"]
[White "FabianoCaruana"]
[Black "chenxiaoyuer"]
[Result "1-0"]
[WhiteElo "3079"]
[BlackElo "2894"]
[TimeControl "180+1"]
[EndTime "15:06:40 PDT"]
[Termination "FabianoCaruana won by checkmate"]

1. c4 {[%clk 0:03:00.9]} 1... Nf6 {[%clk 0:02:59.9]} 2. Nc3 {[%clk 0:03:00.9]}
2... g6 {[%clk 0:03:00.5]} 3. e4 {[%clk 0:03:00.8]} 3... d6 {[%clk 0:03:00.7]}
4. d4 {[%clk 0:03:01]} 4... Bg7 {[%clk 0:03:01.4]} 5. h3 {[%clk 0:03:01.3]} 5...
e5 {[%clk 0:03:01.6]} 6. d5 {[%clk 0:03:00.9]} 6... Na6 {[%clk 0:03:01]} 7. Be3
{[%clk 0:02:59.2]} 7... Nc5 {[%clk 0:03:00.5]} 8. Qc2 {[%clk 0:02:56.3]} 8... a5
{[%clk 0:02:54.3]} 9. Nf3 {[%clk 0:02:46.7]} 9... O-O {[%clk 0:02:49.3]} 10. g4
{[%clk 0:02:43.1]} 10... c6 {[%clk 0:02:34.4]} 11. Nd2 {[%clk 0:02:38]} 11... a4
{[%clk 0:02:29.5]} 12. Be2 {[%clk 0:02:32.7]} 12... Bd7 {[%clk 0:02:23.4]} 13.
f3 {[%clk 0:02:25]} 13... Qa5 {[%clk 0:02:10.6]} 14. a3 {[%clk 0:02:21.3]} 14...
cxd5 {[%clk 0:02:05.2]} 15. cxd5 {[%clk 0:02:22.2]} 15... b5 {[%clk 0:02:05.4]}
16. Kf2 {[%clk 0:02:16.8]} 16... b4 {[%clk 0:02:03.4]} 17. Nc4 {[%clk
0:02:14.6]} 17... Qc7 {[%clk 0:01:42.6]} 18. axb4 {[%clk 0:02:14.8]} 18... Nb3
{[%clk 0:01:42.1]} 19. Ra3 {[%clk 0:02:13.9]} 19... Nd4 {[%clk 0:01:38.6]} 20.
Qd2 {[%clk 0:02:10.4]} 20... Rfb8 {[%clk 0:01:33.2]} 21. b5 {[%clk 0:02:01.2]}
21... Bxb5 {[%clk 0:01:20.1]} 22. Nxb5 {[%clk 0:01:58.3]} 22... Rxb5 {[%clk
0:01:21]} 23. Nxe5 {[%clk 0:01:20.4]} 23... dxe5 {[%clk 0:00:55.2]} 24. Bxd4
{[%clk 0:01:19.3]} 24... exd4 {[%clk 0:00:52.7]} 25. Bxb5 {[%clk 0:01:19.4]}
25... Rb8 {[%clk 0:00:44.2]} 26. Bxa4 {[%clk 0:00:34.1]} 26... d3 {[%clk
0:00:40.8]} 27. b4 {[%clk 0:00:30.6]} 27... Qa7+ {[%clk 0:00:28.8]} 28. Kg2
{[%clk 0:00:29.7]} 28... Rc8 {[%clk 0:00:25.7]} 29. Qxd3 {[%clk 0:00:26.7]}
29... Qc7 {[%clk 0:00:20.8]} 30. Bc6 {[%clk 0:00:26.1]} 30... h5 {[%clk
0:00:20.1]} 31. b5 {[%clk 0:00:23.2]} 31... Qe5 {[%clk 0:00:20]} 32. Qc3 {[%clk
0:00:19.7]} 32... Qf4 {[%clk 0:00:18.8]} 33. Qe3 {[%clk 0:00:19.5]} 33... Qe5
{[%clk 0:00:18.3]} 34. Ra2 {[%clk 0:00:17.4]} 34... g5 {[%clk 0:00:15.9]} 35. b6
{[%clk 0:00:13.9]} 35... Bf8 {[%clk 0:00:15.9]} 36. b7 {[%clk 0:00:13.7]} 36...
Rb8 {[%clk 0:00:16.5]} 37. h4 {[%clk 0:00:10.4]} 37... Bd6 {[%clk 0:00:11.9]}
38. Qxg5+ {[%clk 0:00:10]} 38... Qxg5 {[%clk 0:00:11.7]} 39. hxg5 {[%clk
0:00:10.9]} 39... Nh7 {[%clk 0:00:11.5]} 40. Rxh5 {[%clk 0:00:10.4]} 40... Bf4
{[%clk 0:00:11.9]} 41. Ra8 {[%clk 0:00:08.9]} 41... Kg7 {[%clk 0:00:12.5]} 42.
Rxb8 {[%clk 0:00:08.4]} 42... Bxb8 {[%clk 0:00:13.4]} 43. Kf1 {[%clk 0:00:07.3]}
43... Nf8 {[%clk 0:00:14.3]} 44. Ke2 {[%clk 0:00:07.2]} 44... Ng6 {[%clk
0:00:15.2]} 45. Rh1 {[%clk 0:00:07.2]} 45... Nf4+ {[%clk 0:00:14.6]} 46. Kd2
{[%clk 0:00:07.5]} 46... Ng6 {[%clk 0:00:14.9]} 47. Ra1 {[%clk 0:00:07.3]} 47...
Ne5 {[%clk 0:00:14.9]} 48. Ra8 {[%clk 0:00:07]} 48... Nxf3+ {[%clk 0:00:15.3]}
49. Ke3 {[%clk 0:00:07.6]} 49... Nxg5 {[%clk 0:00:15]} 50. Rxb8 {[%clk
0:00:07.9]} 50... Nxe4 {[%clk 0:00:15.9]} 51. Kxe4 {[%clk 0:00:07.9]} 51... Kf6
{[%clk 0:00:16.2]} 52. Rg8 {[%clk 0:00:07.7]} 52... Ke7 {[%clk 0:00:16.6]} 53.
b8=Q {[%clk 0:00:07.8]} 53... Kf6 {[%clk 0:00:17.5]} 54. Qd8# {[%clk 0:00:07.7]}
1-0

[Event "Late-Titled-Tuesday-Blitz-May-14-2024"]
[Site "Chess.com"]
[Date "2024.05.14"]
[Round "6"]
[White "betta2004"]
[Black "DreamsAreFake"]
[Result "1-0"]
[WhiteElo "2542"]
[BlackElo "2737"]
[TimeControl "180+1"]
[EndTime "15:06:42 PDT"]
[Termination "betta2004 won by resignation"]

1. Nf3 {[%clk 0:03:00.9]} 1... Nf6 {[%clk 0:02:58.7]} 2. e3 {[%clk 0:03:00.9]}
2... b6 {[%clk 0:02:58.9]} 3. b3 {[%clk 0:03:00.5]} 3... Bb7 {[%clk 0:02:59.3]}
4. Bb2 {[%clk 0:03:00.9]} 4... g6 {[%clk 0:03:00]} 5. d4 {[%clk 0:03:00.4]} 5...
Bg7 {[%clk 0:03:00.6]} 6. Nbd2 {[%clk 0:02:59.1]} 6... O-O {[%clk 0:03:01.2]} 7.
Bd3 {[%clk 0:02:55.5]} 7... d6 {[%clk 0:03:01.8]} 8. O-O {[%clk 0:02:54.9]} 8...
c5 {[%clk 0:03:02.7]} 9. c4 {[%clk 0:02:54.5]} 9... e6 {[%clk 0:02:59.7]} 10.
Qc2 {[%clk 0:02:52]} 10... Qe7 {[%clk 0:02:59.9]} 11. e4 {[%clk 0:02:47.5]}
11... cxd4 {[%clk 0:02:56.9]} 12. Nxd4 {[%clk 0:02:48.4]} 12... Nc6 {[%clk
0:02:57.4]} 13. a3 {[%clk 0:02:45.9]} 13... Rac8 {[%clk 0:02:57.4]} 14. Rad1
{[%clk 0:02:37.8]} 14... Nxd4 {[%clk 0:02:55.2]} 15. Bxd4 {[%clk 0:02:38]} 15...
d5 {[%clk 0:02:56.1]} 16. exd5 {[%clk 0:02:37.9]} 16... exd5 {[%clk 0:02:56.1]}
17. Rfe1 {[%clk 0:02:36.2]} 17... Qxa3 {[%clk 0:02:55.8]} 18. Ra1 {[%clk
0:02:36.2]} 18... Qd6 {[%clk 0:02:54]} 19. Be5 {[%clk 0:02:36.7]} 19... Qc6
{[%clk 0:02:53]} 20. Bf1 {[%clk 0:02:31.5]} 20... a5 {[%clk 0:02:49]} 21. Qb2
{[%clk 0:02:24.2]} 21... dxc4 {[%clk 0:02:40.4]} 22. Nxc4 {[%clk 0:02:19.8]}
22... Nh5 {[%clk 0:02:40.8]} 23. Bxg7 {[%clk 0:02:18.9]} 23... Nxg7 {[%clk
0:02:40.9]} 24. Rac1 {[%clk 0:02:17.7]} 24... Qc5 {[%clk 0:02:26]} 25. Re5
{[%clk 0:02:13.5]} 25... Qb4 {[%clk 0:02:25.1]} 26. Re3 {[%clk 0:02:01.8]} 26...
Nf5 {[%clk 0:02:23.7]} 27. Rh3 {[%clk 0:01:59]} 27... a4 {[%clk 0:02:12]} 28.
Ne5 {[%clk 0:01:58]} 28... a3 {[%clk 0:02:09.2]} 29. Qa1 {[%clk 0:01:52.3]}
29... Qd4 {[%clk 0:02:03.4]} 30. Qxd4 {[%clk 0:01:24.4]} 30... Nxd4 {[%clk
0:02:04.3]} 31. Ra1 {[%clk 0:01:24.8]} 31... Nc2 {[%clk 0:01:48.7]} 32. Ra2
{[%clk 0:01:24.7]} 32... Rfe8 {[%clk 0:01:47.6]} 33. Nc4 {[%clk 0:01:17.7]}
33... Nb4 {[%clk 0:01:19.8]} 34. Rxa3 {[%clk 0:01:17.4]} 34... b5 {[%clk
0:01:20.2]} 35. Nd6 {[%clk 0:01:14.5]} 35... Re1 {[%clk 0:01:14.3]} 36. Nxc8
{[%clk 0:01:12]} 36... Bxc8 {[%clk 0:01:09]} 37. Ra8 {[%clk 0:01:10.7]} 37...
Rc1 {[%clk 0:01:07.8]} 38. Re3 {[%clk 0:01:04.6]} 38... Kg7 {[%clk 0:01:08.3]}
39. f3 {[%clk 0:01:00]} 39... Be6 {[%clk 0:01:05.6]} 40. Kf2 {[%clk 0:00:57.3]}
40... Nd5 {[%clk 0:01:06.3]} 41. Re1 {[%clk 0:00:55.3]} 41... Rc2+ {[%clk
0:01:05.5]} 42. Kg3 {[%clk 0:00:53.5]} 42... Nf6 {[%clk 0:01:03.7]} 43. h4
{[%clk 0:00:49.5]} 43... Nh5+ {[%clk 0:00:56.9]} 44. Kh2 {[%clk 0:00:49.3]}
44... Bxb3 {[%clk 0:00:57.6]} 45. Bxb5 {[%clk 0:00:48.4]} 45... Nf4 {[%clk
0:00:54.7]} 46. Bf1 {[%clk 0:00:48.5]} 46... Bd5 {[%clk 0:00:54.6]} 47. Re3
{[%clk 0:00:34.7]} 47... h5 {[%clk 0:00:45.7]} 48. Kg3 {[%clk 0:00:32.8]} 48...
Ne6 {[%clk 0:00:45.4]} 49. Ra5 {[%clk 0:00:30.8]} 49... Bc6 {[%clk 0:00:44.6]}
50. Ra6 {[%clk 0:00:29.2]} 50... Nd4 {[%clk 0:00:44.8]} 51. Bd3 {[%clk
0:00:26.3]} 51... Rc3 {[%clk 0:00:42.3]} 52. Kf2 {[%clk 0:00:24.3]} 52... Rb3
{[%clk 0:00:35]} 53. Be4 {[%clk 0:00:23.9]} 53... Bb5 {[%clk 0:00:33.5]} 54.
Rxb3 {[%clk 0:00:22.8]} 54... Nxb3 {[%clk 0:00:33.1]} 55. Rb6 {[%clk 0:00:23.2]}
55... Nd4 {[%clk 0:00:33.5]} 56. Ke3 {[%clk 0:00:23.5]} 56... Nc2+ {[%clk
0:00:24]} 57. Bxc2 {[%clk 0:00:21.8]} 1-0